[Event "Early-Titled-Tuesday-Blitz-February-20-2024"]
[Site "Chess.com"]
[Date "2024.02.20"]
[Round "5"]
[White "HanSchut"]
[Black "EsmeraldasAnderson03"]
[Result "1/2-1/2"]
[WhiteElo "2292"]
[BlackElo "2531"]
[TimeControl "180+1"]
[EndTime "8:57:19 PST"]
[Termination "Game drawn - insufficient material"]

1. e4 {[%clk 0:03:00.9]} 1... c5 {[%clk 0:02:59.2]} 2. Nf3 {[%clk 0:03:01]} 2...
d6 {[%clk 0:02:59.6]} 3. d4 {[%clk 0:03:01]} 3... cxd4 {[%clk 0:03:00.5]} 4.
Nxd4 {[%clk 0:03:01.2]} 4... Nf6 {[%clk 0:03:00.3]} 5. f3 {[%clk 0:03:01.9]}
5... e5 {[%clk 0:03:00]} 6. Bb5+ {[%clk 0:03:02.5]} 6... Bd7 {[%clk 0:02:55.2]}
7. Bxd7+ {[%clk 0:03:02.1]} 7... Nbxd7 {[%clk 0:02:54.5]} 8. Nf5 {[%clk
0:03:02.6]} 8... Qc7 {[%clk 0:02:54.9]} 9. Nc3 {[%clk 0:03:00.7]} 9... g6 {[%clk
0:02:55]} 10. Ne3 {[%clk 0:02:59.9]} 10... Nb6 {[%clk 0:02:53.2]} 11. O-O {[%clk
0:02:47.1]} 11... Be7 {[%clk 0:02:50.3]} 12. Kh1 {[%clk 0:02:12]} 12... O-O
{[%clk 0:02:48.3]} 13. Bd2 {[%clk 0:02:07.6]} 13... Rfd8 {[%clk 0:02:43.5]} 14.
Rc1 {[%clk 0:02:07.5]} 14... d5 {[%clk 0:02:39.9]} 15. exd5 {[%clk 0:02:04.7]}
15... Nbxd5 {[%clk 0:02:40.1]} 16. Nexd5 {[%clk 0:02:00.4]} 16... Nxd5 {[%clk
0:02:41]} 17. Nb5 {[%clk 0:01:53.4]} 17... Qc6 {[%clk 0:02:38.7]} 18. c4 {[%clk
0:01:49]} 18... Nf4 {[%clk 0:02:37.3]} 19. a3 {[%clk 0:01:01.4]} 19... Nd3
{[%clk 0:02:28.3]} 20. Rc2 {[%clk 0:00:55.5]} 20... Bc5 {[%clk 0:02:26.8]} 21.
Qe2 {[%clk 0:00:50.7]} 21... Qb6 {[%clk 0:02:10]} 22. g3 {[%clk 0:00:43.4]}
22... a6 {[%clk 0:02:05.4]} 23. Nc3 {[%clk 0:00:43.6]} 23... Qb3 {[%clk
0:02:03.6]} 24. Bg5 {[%clk 0:00:37.4]} 24... Rd7 {[%clk 0:01:53.3]} 25. Nd5
{[%clk 0:00:37.6]} 25... Rxd5 {[%clk 0:01:41.1]} 26. cxd5 {[%clk 0:00:37.8]}
26... Bd4 {[%clk 0:01:39.5]} 27. Bc1 {[%clk 0:00:26.7]} 27... Nc5 {[%clk
0:01:30.8]} 28. Qc4 {[%clk 0:00:23.3]} 28... Qxc4 {[%clk 0:01:17]} 29. Rxc4
{[%clk 0:00:24.2]} 29... Rd8 {[%clk 0:01:16.9]} 30. b4 {[%clk 0:00:21.5]} 30...
Nd3 {[%clk 0:01:12.7]} 31. f4 {[%clk 0:00:18.4]} 31... Rxd5 {[%clk 0:01:12.1]}
32. fxe5 {[%clk 0:00:18.7]} 32... Bxe5 {[%clk 0:01:13]} 33. Re4 {[%clk 0:00:17]}
33... b5 {[%clk 0:01:09.8]} 34. Bf4 {[%clk 0:00:16.7]} 34... Bd4 {[%clk
0:01:06.5]} 35. Be3 {[%clk 0:00:15.2]} 35... Bxe3 {[%clk 0:01:03]} 36. Rxe3
{[%clk 0:00:16.1]} 36... Ne5 {[%clk 0:01:03.3]} 37. Rfe1 {[%clk 0:00:16.1]}
37... Nc4 {[%clk 0:01:03.8]} 38. Re8+ {[%clk 0:00:15.6]} 38... Kg7 {[%clk
0:01:04.5]} 39. R8e7 {[%clk 0:00:15.9]} 39... Rf5 {[%clk 0:01:00.6]} 40. Ra7
{[%clk 0:00:11.1]} 40... Rf6 {[%clk 0:01:00.1]} 41. Ra1 {[%clk 0:00:10.1]} 41...
g5 {[%clk 0:00:59.5]} 42. a4 {[%clk 0:00:10.5]} 42... g4 {[%clk 0:00:56.8]} 43.
axb5 {[%clk 0:00:10.4]} 43... axb5 {[%clk 0:00:57.7]} 44. R7a6 {[%clk
0:00:10.1]} 44... Rf5 {[%clk 0:00:58]} 45. R6a5 {[%clk 0:00:09.9]} 45... h5
{[%clk 0:00:55.5]} 46. Ra7 {[%clk 0:00:09.5]} 46... h4 {[%clk 0:00:55.5]} 47.
gxh4 {[%clk 0:00:08.6]} 47... Kh6 {[%clk 0:00:55]} 48. Kg1 {[%clk 0:00:09.2]}
48... Kh5 {[%clk 0:00:54.9]} 49. Rf1 {[%clk 0:00:09.8]} 49... Rxf1+ {[%clk
0:00:48.5]} 50. Kxf1 {[%clk 0:00:10.7]} 50... f5 {[%clk 0:00:48.6]} 51. Rb7
{[%clk 0:00:10.1]} 51... Kxh4 {[%clk 0:00:47.6]} 52. Rxb5 {[%clk 0:00:09.8]}
52... f4 {[%clk 0:00:48.2]} 53. Rc5 {[%clk 0:00:09]} 53... Nd2+ {[%clk
0:00:45.2]} 54. Ke1 {[%clk 0:00:09.5]} 54... Nf3+ {[%clk 0:00:44.8]} 55. Ke2
{[%clk 0:00:08.1]} 55... Nxh2 {[%clk 0:00:44.8]} 56. b5 {[%clk 0:00:08.8]} 56...
g3 {[%clk 0:00:44.7]} 57. Rc8 {[%clk 0:00:09.1]} 57... f3+ {[%clk 0:00:44.6]}
58. Ke3 {[%clk 0:00:08.4]} 58... f2 {[%clk 0:00:43.9]} 59. Rf8 {[%clk
0:00:07.8]} 59... f1=Q {[%clk 0:00:42.7]} 60. Rxf1 {[%clk 0:00:08.3]} 60...
Nxf1+ {[%clk 0:00:43.4]} 61. Kf3 {[%clk 0:00:08]} 61... Kh3 {[%clk 0:00:40.8]}
62. b6 {[%clk 0:00:08.4]} 62... Nh2+ {[%clk 0:00:40.3]} 63. Ke4 {[%clk
0:00:08.1]} 63... g2 {[%clk 0:00:39.6]} 64. b7 {[%clk 0:00:08.7]} 64... g1=Q
{[%clk 0:00:40.3]} 65. b8=Q {[%clk 0:00:09.2]} 65... Qg2+ {[%clk 0:00:40.6]} 66.
Kd4 {[%clk 0:00:09]} 66... Qd2+ {[%clk 0:00:40]} 67. Ke5 {[%clk 0:00:09]} 67...
Ng4+ {[%clk 0:00:38.2]} 68. Ke6 {[%clk 0:00:09.5]} 68... Qe3+ {[%clk 0:00:36.5]}
69. Kd7 {[%clk 0:00:10]} 69... Nf6+ {[%clk 0:00:36.2]} 70. Kc8 {[%clk 0:00:10]}
70... Qe6+ {[%clk 0:00:35.2]} 71. Kb7 {[%clk 0:00:09.8]} 71... Qd5+ {[%clk
0:00:33.5]} 72. Ka7 {[%clk 0:00:09]} 72... Qa5+ {[%clk 0:00:31.1]} 73. Kb7
{[%clk 0:00:08.9]} 73... Qb5+ {[%clk 0:00:30.6]} 74. Ka7 {[%clk 0:00:09.4]}
74... Qc5+ {[%clk 0:00:31.1]} 75. Qb6 {[%clk 0:00:09.3]} 75... Qe7+ {[%clk
0:00:28.6]} 76. Qb7 {[%clk 0:00:09.4]} 76... Qe5 {[%clk 0:00:27.2]} 77. Qc8+
{[%clk 0:00:07.9]} 77... Kg3 {[%clk 0:00:27.2]} 78. Qb8 {[%clk 0:00:08]} 78...
Kf4 {[%clk 0:00:23.2]} 79. Qxe5+ {[%clk 0:00:07.5]} 79... Kxe5 {[%clk
0:00:24.1]} 1/2-1/2

[Event "Early-Titled-Tuesday-Blitz-February-20-2024"]
[Site "Chess.com"]
[Date "2024.02.20"]
[Round "5"]
[White "Aygehovit1992"]
[Black "adotand"]
[Result "0-1"]
[WhiteElo "2680"]
[BlackElo "2945"]
[TimeControl "180+1"]
[EndTime "8:57:20 PST"]
[Termination "adotand won by resignation"]

1. e4 {[%clk 0:03:00.9]} 1... c5 {[%clk 0:03:00.1]} 2. Nf3 {[%clk 0:02:59.3]}
2... Nc6 {[%clk 0:03:00.6]} 3. Bb5 {[%clk 0:02:59.2]} 3... e6 {[%clk 0:03:01.3]}
4. c3 {[%clk 0:02:58.7]} 4... Nf6 {[%clk 0:02:56.3]} 5. Bxc6 {[%clk 0:02:54.3]}
5... bxc6 {[%clk 0:02:53.6]} 6. e5 {[%clk 0:02:54.4]} 6... Nd5 {[%clk
0:02:54.1]} 7. d3 {[%clk 0:02:52.2]} 7... Be7 {[%clk 0:02:50.9]} 8. Nbd2 {[%clk
0:02:51.9]} 8... f6 {[%clk 0:02:50.3]} 9. Ne4 {[%clk 0:02:44.8]} 9... d6 {[%clk
0:02:30.7]} 10. exd6 {[%clk 0:02:43.1]} 10... Bxd6 {[%clk 0:02:31.6]} 11. Qa4
{[%clk 0:02:40.5]} 11... Bb7 {[%clk 0:02:26.4]} 12. Qa3 {[%clk 0:02:34.5]} 12...
O-O {[%clk 0:02:24.1]} 13. Nxc5 {[%clk 0:02:29.5]} 13... Qe7 {[%clk 0:02:24.1]}
14. d4 {[%clk 0:02:29.7]} 14... e5 {[%clk 0:02:22.3]} 15. O-O {[%clk 0:02:29.9]}
15... e4 {[%clk 0:02:22.4]} 16. Re1 {[%clk 0:02:28.7]} 16... f5 {[%clk 0:02:23]}
17. Ne5 {[%clk 0:02:22.7]} 17... Rae8 {[%clk 0:02:03.4]} 18. Qxa7 {[%clk
0:02:04.2]} 18... Bxc5 {[%clk 0:02:01.4]} 19. dxc5 {[%clk 0:02:00.4]} 19... Ra8
{[%clk 0:02:01]} 20. Nxc6 {[%clk 0:01:58]} 20... Bxc6 {[%clk 0:02:01.9]} 21.
Qxe7 {[%clk 0:01:58.1]} 21... Nxe7 {[%clk 0:02:02.8]} 22. Bf4 {[%clk 0:01:53.2]}
22... Nd5 {[%clk 0:01:57.2]} 23. Bd6 {[%clk 0:01:53.2]} 23... Rfe8 {[%clk
0:01:57.8]} 24. a3 {[%clk 0:01:48.4]} 24... e3 {[%clk 0:01:38.1]} 25. c4 {[%clk
0:01:46.4]} 25... exf2+ {[%clk 0:01:37.9]} 26. Kxf2 {[%clk 0:01:47]} 26... Nf6
{[%clk 0:01:38.7]} 27. Rxe8+ {[%clk 0:01:40.8]} 27... Rxe8 {[%clk 0:01:39.6]}
28. b4 {[%clk 0:01:40.9]} 28... Ng4+ {[%clk 0:01:39.8]} 29. Kf1 {[%clk
0:01:34.1]} 29... Ne3+ {[%clk 0:01:38.9]} 30. Kf2 {[%clk 0:01:32.9]} 30... Nxc4
{[%clk 0:01:39.5]} 31. a4 {[%clk 0:01:29.9]} 31... Ra8 {[%clk 0:01:22.9]} 32. a5
{[%clk 0:01:30.2]} 32... Bb5 {[%clk 0:01:16.5]} 33. Re1 {[%clk 0:01:27.9]} 33...
Rd8 {[%clk 0:01:15]} 34. Re7 {[%clk 0:01:14.2]} 34... Nxd6 {[%clk 0:00:56]} 35.
cxd6 {[%clk 0:01:15.1]} 35... Rxd6 {[%clk 0:00:56.9]} 36. Re5 {[%clk 0:01:15.3]}
36... Bd3 {[%clk 0:00:49.4]} 37. b5 {[%clk 0:01:15.2]} 37... Be4 {[%clk
0:00:37.4]} 38. b6 {[%clk 0:00:59.7]} 38... Rd2+ {[%clk 0:00:31.6]} 39. Ke3
{[%clk 0:00:58.4]} 39... Rb2 {[%clk 0:00:32.2]} 40. g4 {[%clk 0:00:50.6]} 40...
g6 {[%clk 0:00:32.1]} 41. gxf5 {[%clk 0:00:48.6]} 41... gxf5 {[%clk 0:00:33]}
42. Re7 {[%clk 0:00:47.1]} 42... h5 {[%clk 0:00:29.7]} 43. h4 {[%clk 0:00:44.6]}
43... Rb5 {[%clk 0:00:28.6]} 44. Ra7 {[%clk 0:00:44.4]} 44... Kf8 {[%clk
0:00:25.4]} 45. Kd4 {[%clk 0:00:41.1]} 45... Ke8 {[%clk 0:00:24.3]} 46. Kc4
{[%clk 0:00:41]} 46... Rb1 {[%clk 0:00:24]} 47. Rh7 {[%clk 0:00:36.5]} 47... f4
{[%clk 0:00:20.1]} 48. Rxh5 {[%clk 0:00:36.5]} 48... f3 {[%clk 0:00:19.1]} 49.
Re5+ {[%clk 0:00:36.7]} 49... Kd7 {[%clk 0:00:19.8]} 50. Rxe4 {[%clk 0:00:32.5]}
50... f2 {[%clk 0:00:20.3]} 51. Rf4 {[%clk 0:00:30.5]} 51... f1=Q+ {[%clk
0:00:20.7]} 52. Rxf1 {[%clk 0:00:30.8]} 52... Rxf1 {[%clk 0:00:21.6]} 53. Kb5
{[%clk 0:00:30.7]} 53... Kc8 {[%clk 0:00:20.7]} 54. a6 {[%clk 0:00:26.7]} 54...
Rf5+ {[%clk 0:00:20.2]} 55. Kc6 {[%clk 0:00:26.8]} 55... Rf6+ {[%clk 0:00:20.9]}
56. Kb5 {[%clk 0:00:26.9]} 56... Rh6 {[%clk 0:00:21.1]} 57. Kc5 {[%clk
0:00:19.1]} 57... Kb8 {[%clk 0:00:20.8]} 58. Kb5 {[%clk 0:00:18.9]} 58... Rxh4
{[%clk 0:00:20.5]} 59. Kc5 {[%clk 0:00:18.7]} 59... Rh6 {[%clk 0:00:20.3]} 60.
Kb5 {[%clk 0:00:18.7]} 60... Kc8 {[%clk 0:00:20.5]} 61. Kc5 {[%clk 0:00:19.2]}
61... Rf6 {[%clk 0:00:20.2]} 62. Kb5 {[%clk 0:00:18.9]} 62... Rf1 {[%clk
0:00:20.8]} 63. Kc5 {[%clk 0:00:18.2]} 63... Rb1 {[%clk 0:00:20.7]} 64. Kc6
{[%clk 0:00:17.8]} 64... Kb8 {[%clk 0:00:20.2]} 65. Kc5 {[%clk 0:00:17.3]} 65...
Ra1 {[%clk 0:00:19.5]} 66. Kb5 {[%clk 0:00:17.2]} 66... Ra2 {[%clk 0:00:20.2]}
67. a7+ {[%clk 0:00:13.9]} 67... Kb7 {[%clk 0:00:20.4]} 68. Kc5 {[%clk
0:00:13.7]} 68... Rc2+ {[%clk 0:00:20.4]} 69. Kb5 {[%clk 0:00:14.1]} 69... Rb2+
{[%clk 0:00:20.8]} 70. Kc5 {[%clk 0:00:13.9]} 70... Rb1 {[%clk 0:00:20.7]} 0-1

[Event "Early-Titled-Tuesday-Blitz-February-20-2024"]
[Site "Chess.com"]
[Date "2024.02.20"]
[Round "5"]
[White "Rosh1610"]
[Black "viktorgen2021"]
[Result "1-0"]
[WhiteElo "2394"]
[BlackElo "2536"]
[TimeControl "180+1"]
[EndTime "8:57:21 PST"]
[Termination "Rosh1610 won by resignation"]

1. e4 {[%clk 0:02:57.5]} 1... g6 {[%clk 0:01:55.2]} 2. d4 {[%clk 0:02:57.1]}
2... Bg7 {[%clk 0:01:55.8]} 3. Nc3 {[%clk 0:02:57]} 3... d6 {[%clk 0:01:56.4]}
4. f4 {[%clk 0:02:57.6]} 4... Nf6 {[%clk 0:01:56.9]} 5. Nf3 {[%clk 0:02:54.6]}
5... O-O {[%clk 0:01:56.7]} 6. e5 {[%clk 0:02:55.2]} 6... dxe5 {[%clk
0:01:53.9]} 7. fxe5 {[%clk 0:02:56.1]} 7... Nd5 {[%clk 0:01:53.7]} 8. Bc4 {[%clk
0:02:55.4]} 8... c6 {[%clk 0:01:24.5]} 9. Bxd5 {[%clk 0:02:36.7]} 9... cxd5
{[%clk 0:01:14.9]} 10. O-O {[%clk 0:02:37]} 10... Nc6 {[%clk 0:01:15]} 11. Bg5
{[%clk 0:02:36.4]} 11... f6 {[%clk 0:01:12.7]} 12. exf6 {[%clk 0:02:34.5]} 12...
exf6 {[%clk 0:01:12.8]} 13. Bf4 {[%clk 0:02:26.8]} 13... Be6 {[%clk 0:00:55.4]}
14. Qd2 {[%clk 0:02:10.9]} 14... a6 {[%clk 0:00:54.6]} 15. Na4 {[%clk
0:02:06.5]} 15... Re8 {[%clk 0:00:50.4]} 16. Nc5 {[%clk 0:02:06.3]} 16... b6
{[%clk 0:00:48.9]} 17. Nxe6 {[%clk 0:02:01]} 17... Rxe6 {[%clk 0:00:49.8]} 18.
Rae1 {[%clk 0:01:58.6]} 18... Re4 {[%clk 0:00:49.9]} 19. Bh6 {[%clk 0:01:35.4]}
19... Qd7 {[%clk 0:00:47.4]} 20. Bxg7 {[%clk 0:01:25]} 20... Kxg7 {[%clk
0:00:34]} 21. Re2 {[%clk 0:00:34.5]} 21... Rae8 {[%clk 0:00:33.6]} 22. Rfe1
{[%clk 0:00:34.5]} 22... h6 {[%clk 0:00:28.2]} 23. Kf2 {[%clk 0:00:33.4]} 23...
f5 {[%clk 0:00:27.8]} 24. c3 {[%clk 0:00:16.8]} 24... Qd6 {[%clk 0:00:28.1]} 25.
h3 {[%clk 0:00:14.1]} 25... g5 {[%clk 0:00:28.4]} 26. Qd3 {[%clk 0:00:14]} 26...
g4 {[%clk 0:00:26.3]} 27. hxg4 {[%clk 0:00:14]} 27... fxg4 {[%clk 0:00:26.4]}
28. Nd2 {[%clk 0:00:07.5]} 28... Qf4+ {[%clk 0:00:15.7]} 29. Kg1 {[%clk
0:00:07.3]} 29... Re3 {[%clk 0:00:07.9]} 30. Rxe3 {[%clk 0:00:06.7]} 30... Rf8
{[%clk 0:00:07.9]} 31. R3e2 {[%clk 0:00:04.5]} 31... g3 {[%clk 0:00:07.6]} 32.
Qf3 {[%clk 0:00:02.9]} 32... Qg5 {[%clk 0:00:06.7]} 33. Qe3 {[%clk 0:00:02.2]}
33... Qg4 {[%clk 0:00:04.8]} 34. Nf3 {[%clk 0:00:02.6]} 34... Qh5 {[%clk
0:00:04.7]} 35. Qe6 {[%clk 0:00:02.6]} 35... Rxf3 {[%clk 0:00:04.1]} 36. Qd7+
{[%clk 0:00:03]} 36... Rf7 {[%clk 0:00:03.7]} 37. Qh3 {[%clk 0:00:03.7]} 37...
Qxh3 {[%clk 0:00:03.3]} 38. gxh3 {[%clk 0:00:04.6]} 38... Nd8 {[%clk 0:00:04]}
39. Rg2 {[%clk 0:00:05]} 39... Rf6 {[%clk 0:00:02.9]} 40. Rxg3+ {[%clk
0:00:04.8]} 40... Kf7 {[%clk 0:00:03.8]} 41. Kg2 {[%clk 0:00:05]} 41... Ne6
{[%clk 0:00:04.4]} 42. Rf3 {[%clk 0:00:05.7]} 42... Nf4+ {[%clk 0:00:04.6]} 43.
Kg3 {[%clk 0:00:06.1]} 43... Nh5+ {[%clk 0:00:04.5]} 44. Kg4 {[%clk 0:00:06.2]}
44... Rxf3 {[%clk 0:00:03.8]} 45. Kxf3 {[%clk 0:00:07.1]} 45... Nf6 {[%clk
0:00:04.5]} 46. Re5 {[%clk 0:00:07.8]} 46... Kg6 {[%clk 0:00:03.8]} 47. Kf4
{[%clk 0:00:07.9]} 47... h5 {[%clk 0:00:04.2]} 48. Re6 {[%clk 0:00:08.2]} 48...
Kf7 {[%clk 0:00:04.9]} 49. Rxf6+ {[%clk 0:00:09.1]} 49... Kxf6 {[%clk 0:00:05]}
50. h4 {[%clk 0:00:10]} 50... a5 {[%clk 0:00:04.5]} 51. a4 {[%clk 0:00:09.6]}
51... Ke6 {[%clk 0:00:02]} 52. Kg5 {[%clk 0:00:10.1]} 52... Kf7 {[%clk
0:00:01.6]} 53. Kxh5 {[%clk 0:00:10.5]} 53... Kf6 {[%clk 0:00:02.5]} 54. Kg4
{[%clk 0:00:11.4]} 54... b5 {[%clk 0:00:03.2]} 55. h5 {[%clk 0:00:12.3]} 55...
bxa4 {[%clk 0:00:04.1]} 56. Kf4 {[%clk 0:00:11.7]} 56... Ke6 {[%clk 0:00:04.3]}
57. h6 {[%clk 0:00:11.5]} 57... Kf6 {[%clk 0:00:04.9]} 58. h7 {[%clk 0:00:12]}
58... Kg7 {[%clk 0:00:05.4]} 59. Ke5 {[%clk 0:00:12.5]} 59... Kxh7 {[%clk
0:00:06.1]} 60. Kxd5 {[%clk 0:00:13]} 60... Kg6 {[%clk 0:00:07]} 61. Kc4 {[%clk
0:00:13.3]} 61... Kf5 {[%clk 0:00:07.5]} 62. Kb5 {[%clk 0:00:13.8]} 62... a3
{[%clk 0:00:07.6]} 63. bxa3 {[%clk 0:00:14.2]} 63... Ke4 {[%clk 0:00:08.5]} 64.
Kxa5 {[%clk 0:00:14.6]} 64... Kd5 {[%clk 0:00:09.4]} 65. Kb4 {[%clk 0:00:15.3]}
1-0

[Event "Early-Titled-Tuesday-Blitz-February-20-2024"]
[Site "Chess.com"]
[Date "2024.02.20"]
[Round "5"]
[White "Colombiano07"]
[Black "Andrei_Skvortsov"]
[Result "1/2-1/2"]
[WhiteElo "2443"]
[BlackElo "2704"]
[TimeControl "180+1"]
[EndTime "8:57:23 PST"]
[Termination "Game drawn by repetition"]

1. e4 {[%clk 0:02:57.6]} 1... c5 {[%clk 0:02:58.9]} 2. Nc3 {[%clk 0:02:57]} 2...
a6 {[%clk 0:02:54.6]} 3. g3 {[%clk 0:02:56.5]} 3... b5 {[%clk 0:02:54.2]} 4. Bg2
{[%clk 0:02:57.4]} 4... Bb7 {[%clk 0:02:54.3]} 5. Nge2 {[%clk 0:02:57.5]} 5...
Nf6 {[%clk 0:02:51.4]} 6. O-O {[%clk 0:02:57.3]} 6... b4 {[%clk 0:02:51.7]} 7.
Nd5 {[%clk 0:02:56.6]} 7... Nxd5 {[%clk 0:02:47.4]} 8. exd5 {[%clk 0:02:57.5]}
8... d6 {[%clk 0:02:45.5]} 9. c4 {[%clk 0:02:56.4]} 9... g6 {[%clk 0:02:42]} 10.
d4 {[%clk 0:02:55.1]} 10... Bg7 {[%clk 0:02:40.2]} 11. dxc5 {[%clk 0:02:53.3]}
11... dxc5 {[%clk 0:02:40.4]} 12. Be3 {[%clk 0:02:47.3]} 12... Nd7 {[%clk
0:02:39.3]} 13. Qd2 {[%clk 0:02:44.7]} 13... Qc7 {[%clk 0:02:32.3]} 14. Bh6
{[%clk 0:02:41.3]} 14... O-O {[%clk 0:02:28.5]} 15. Bxg7 {[%clk 0:02:41.2]}
15... Kxg7 {[%clk 0:02:29.4]} 16. b3 {[%clk 0:02:40.9]} 16... Nf6 {[%clk
0:02:18.8]} 17. Rfe1 {[%clk 0:02:39.6]} 17... Rfe8 {[%clk 0:02:15.5]} 18. Qf4
{[%clk 0:02:36.3]} 18... Qd6 {[%clk 0:02:07.3]} 19. Rad1 {[%clk 0:02:25.8]}
19... Nh5 {[%clk 0:01:59.4]} 20. Qg5 {[%clk 0:02:21.7]} 20... h6 {[%clk
0:01:48.6]} 21. Qc1 {[%clk 0:02:20.9]} 21... Nf6 {[%clk 0:01:46.8]} 22. Rd3
{[%clk 0:02:18.4]} 22... e6 {[%clk 0:01:29.6]} 23. Nf4 {[%clk 0:02:15.5]} 23...
exd5 {[%clk 0:01:27.8]} 24. Nxd5 {[%clk 0:02:13.5]} 24... Bxd5 {[%clk
0:01:16.5]} 25. Bxd5 {[%clk 0:02:12.1]} 25... Rxe1+ {[%clk 0:01:12]} 26. Qxe1
{[%clk 0:02:10.6]} 26... Re8 {[%clk 0:01:12.3]} 27. Qd2 {[%clk 0:01:39.5]} 27...
Qe5 {[%clk 0:01:09.5]} 28. Kg2 {[%clk 0:01:33.7]} 28... Qe1 {[%clk 0:01:05.8]}
29. Bf3 {[%clk 0:01:27.8]} 29... Qa1 {[%clk 0:01:03.7]} 30. Qc2 {[%clk
0:01:04.3]} 30... Re1 {[%clk 0:01:01.5]} 31. Rd1 {[%clk 0:01:04]} 31... Rxd1
{[%clk 0:01:01]} 32. Bxd1 {[%clk 0:01:04.9]} 32... Nd7 {[%clk 0:00:52.8]} 33.
Qd2 {[%clk 0:00:52.2]} 33... Ne5 {[%clk 0:00:51.7]} 34. Qd5 {[%clk 0:00:52.8]}
34... Qd4 {[%clk 0:00:48.9]} 35. Qxd4 {[%clk 0:00:51]} 35... cxd4 {[%clk
0:00:49.8]} 36. f4 {[%clk 0:00:51.3]} 36... Nd3 {[%clk 0:00:48.9]} 37. Kf3
{[%clk 0:00:50.2]} 37... f5 {[%clk 0:00:48.3]} 38. Ke2 {[%clk 0:00:47]} 38...
Nc1+ {[%clk 0:00:48.3]} 39. Kd2 {[%clk 0:00:46.2]} 39... Nxa2 {[%clk 0:00:44]}
40. Kd3 {[%clk 0:00:46.8]} 40... Nc3 {[%clk 0:00:44.5]} 41. Bf3 {[%clk
0:00:44.2]} 41... Nb1 {[%clk 0:00:42.5]} 42. Kxd4 {[%clk 0:00:42]} 42... Nd2
{[%clk 0:00:41.8]} 43. Bd1 {[%clk 0:00:42.6]} 43... Kf6 {[%clk 0:00:41.2]} 44.
Kc5 {[%clk 0:00:42.8]} 44... g5 {[%clk 0:00:31.8]} 45. Kxb4 {[%clk 0:00:41.6]}
45... Nf1 {[%clk 0:00:30.6]} 46. Ka5 {[%clk 0:00:39.1]} 46... Ne3 {[%clk
0:00:30.4]} 47. Bf3 {[%clk 0:00:33.8]} 47... gxf4 {[%clk 0:00:27.2]} 48. gxf4
{[%clk 0:00:34.7]} 48... Ke7 {[%clk 0:00:25.1]} 49. Kxa6 {[%clk 0:00:34]} 49...
Kd6 {[%clk 0:00:25]} 50. Kb5 {[%clk 0:00:32.8]} 50... Nf1 {[%clk 0:00:22]} 51.
c5+ {[%clk 0:00:30]} 51... Kc7 {[%clk 0:00:22.2]} 52. h3 {[%clk 0:00:24]} 52...
Nd2 {[%clk 0:00:21.6]} 53. Bd1 {[%clk 0:00:24.6]} 53... Ne4 {[%clk 0:00:20.2]}
54. Bc2 {[%clk 0:00:20.9]} 54... Ng3 {[%clk 0:00:20.2]} 55. Kc4 {[%clk
0:00:18.9]} 55... Ne2 {[%clk 0:00:17.8]} 56. Bxf5 {[%clk 0:00:18]} 56... Nxf4
{[%clk 0:00:18.4]} 57. b4 {[%clk 0:00:17.1]} 57... Ng2 {[%clk 0:00:18.8]} 58. b5
{[%clk 0:00:17]} 58... Ne3+ {[%clk 0:00:19.2]} 59. Kd4 {[%clk 0:00:16.3]} 59...
Nxf5+ {[%clk 0:00:19.7]} 60. Ke5 {[%clk 0:00:15.8]} 60... Ng3 {[%clk 0:00:07]}
61. Kf6 {[%clk 0:00:15.5]} 61... Ne4+ {[%clk 0:00:07.6]} 62. Kg6 {[%clk
0:00:15.5]} 62... Nxc5 {[%clk 0:00:08.3]} 63. Kxh6 {[%clk 0:00:16]} 63... Ne4
{[%clk 0:00:08.8]} 64. Kg6 {[%clk 0:00:15.6]} 64... Ng3 {[%clk 0:00:07.9]} 65.
Kg5 {[%clk 0:00:15.2]} 65... Kb6 {[%clk 0:00:08.1]} 66. h4 {[%clk 0:00:15.8]}
66... Kxb5 {[%clk 0:00:07.3]} 67. Kg4 {[%clk 0:00:16.5]} 67... Ne4 {[%clk
0:00:07.6]} 68. Kf5 {[%clk 0:00:16.6]} 68... Ng3+ {[%clk 0:00:07.9]} 69. Kg4
{[%clk 0:00:17]} 69... Ne4 {[%clk 0:00:08]} 70. Kf4 {[%clk 0:00:17.7]} 70... Nf6
{[%clk 0:00:08.2]} 71. Kf5 {[%clk 0:00:17.8]} 71... Nh5 {[%clk 0:00:08.3]} 72.
Kg5 {[%clk 0:00:18.2]} 72... Ng3 {[%clk 0:00:08.5]} 73. Kg4 {[%clk 0:00:18.5]}
1/2-1/2